[Event "FIDE WSTC Open 50 2025"]
[Site "Prague"]
[Date "2025.02.17"]
[Round "1.32"]
[White "Wielosz, Jaroslaw"]
[Black "Polster, Wolfgang"]
[Result "1/2-1/2"]
[Annotator "TA"]
[ECO "A11"]
[WhiteElo "1930"]
[BlackElo "2131"]
[PlyCount "101"]
[EventDate "2025.02.17"]
[EventType "team-tourn"]
[EventCountry "CZE"]
[SourceTitle "playchess.com"]
[Source "ChessBase"]
[SourceQuality "1"]
[TimeControl "40/5400+30:1800+30"]

{[%evp 9,101,31,39,4,25,23,26,14,43,50,69,54,80,81,87,84,87,68,74,73,83,61,63,-36,-26,-46,-40,-31,-44,-37,-30,-37,-33,-39,23,26,41,40,27,9,41,38,42,39,33,39,47,0,99,0,0,-6,76,78,89,67,66,53,59,60,85,75,102,81,203,208,199,190,179,8,200,209,116,6,191,187,311,24,33,49,202,194,185,197,302,143,147,142,142,0,0,0,138,0]} 1. c4 {[%emt 0:00:06]} c6 {[%emt 0:00:40]} 2. d4 {[%emt 0:00:57]} f5 {[%emt 0:00:43]} 3. Nf3 {[%emt 0:02:05]} Nf6 {[%emt 0:00:43]} 4. g3 {[%emt 0:00:34]} g6 {[%emt 0:00:24]} 5. Bg2 {[%emt 0:00:18]} Bg7 {[%emt 0:00:26]} 6. b4 {[%emt 0:03:20] A84: Dutch Defence: 2 c4 Miscellaneous.} d6 {[%emt 0:08:37]} 7. Bb2 {[%emt 0:00:39]} Nbd7 {[%emt 0:00:40]} 8. Qb3 $146 {[%emt 0:05:17] White has an edge.} (8. O-O O-O 9. Nbd2 Re8 10. Qb3 Kf8 11. d5 e5 12. dxe6 Rxe6 13. Nd4 Re8 14. e3 {1-0 Levers,T (2010)-Perrien,F (1869) Le Touquet op 22nd 2007 (2)}) 8... Nb6 {[%emt 0:09:25]} 9. Nbd2 {[%emt 0:07:00]} O-O {[%emt 0:08:35]} 10. O-O {[%emt 0:01:22]} Kh8 {[%emt 0:05:41]} 11. a4 {[%emt 0:12:24][%cal Ba2a4,Ba4a5][%mdl 32]} a5 {[%emt 0:03:55]} 12. bxa5 {[%emt 0:04:07]} Rxa5 {[%emt 0:00:22]} 13. Bc3 {[%emt 0:03:59]} Ra6 {[%emt 0:01:50]} 14. a5 {[%emt 0:02:26]} Na8 {[%emt 0:00:37]} 15. Qc2 {[%emt 0:08:01]} Nc7 {[%emt 0:02:06]} 16. e4 {[%emt 0:09:08]} (16. e3 $14) 16... fxe4 $15 {[%emt 0:01:42]} 17. Nxe4 {[%emt 0:02:58]} Bf5 $1 {[%emt 0:00:22]} 18. Nh4 $1 {[%emt 0:00:31]} Nxe4 {[%emt 0:00:57]} 19. Bxe4 {[%emt 0:00:24]} Bxe4 {[%emt 0:00:16]} 20. Qxe4 {[%emt 0:00:47]} d5 {[%emt 0:00:11]} 21. cxd5 {[%emt 0:06:49]} cxd5 {[%emt 0:10:17]} (21... Qxd5 $15 22. Qxe7 Rf7) 22. Qd3 $11 {[%emt 0:06:13]} Qd7 {[%emt 0:04:44]} 23. Rab1 $36 {[%emt 0:06:23][%mdl 2048] White has some pressure.} Ne6 {[%emt 0:00:38]} 24. f4 {[%emt 0:03:54]} (24. Nf3 $5) 24... Nd8 {[%emt 0:01:35]} 25. Nf3 {[%emt 0:01:15]} Nc6 {[%emt 0:03:00]} 26. Ne5 {[%emt 0:01:13]} Nxe5 {[%emt 0:01:29]} 27. dxe5 {[%emt 0:00:58]} e6 {[%emt 0:06:34] Black is weak on the dark squares} 28. Qb5 {[%emt 0:02:53]} (28. Bb4 $14 Rc8 29. Rfc1) 28... Rf7 {[%emt 0:01:25]} (28... Rc6 $1 $11) 29. Bd4 {[%emt 0:01:47] White is much more active.} (29. Qxd7 $16 Rxd7 30. Rfc1) 29... Rc6 $1 {[%emt 0:00:48]} 30. Bb6 {[%emt 0:00:49] [#]} g5 {[%emt 0:01:31]} 31. fxg5 $16 {[%emt 0:02:32][%cal Bf4g5,Bg5g6,Bg6h7][%mdl 32]} Rxf1+ {[%emt 0:00:36]} 32. Qxf1 {[%emt 0:00:40]} Rc4 {[%emt 0:01:54]} 33. Re1 {[%emt 0:01:41]} Kg8 {[%emt 0:01:12]} 34. Qd3 {[%emt 0:00:53] Dodges Re4} (34. Qf2 $5) 34... Qe8 {[%emt 0:00:40]} 35. h4 {[%emt 0:01:13]} Qc6 {[%emt 0:02:05]} 36. g6 {[%emt 0:00:46]} Rc3 {[%emt 0:00:17]} (36... hxg6 $16 37. Qxg6 d4) 37. gxh7+ $18 {[%emt 0:00:21]} Kh8 {[%emt 0:00:14]} 38. Qg6 {[%emt 0:00:39]} d4 {[%emt 0:04:55]} 39. Rf1 $2 {[%emt 0:00:38]} (39. Bxd4 $18 Rc1 40. Bf2) 39... Rc1 {[%emt 0:00:17] [#]} (39... Rf3 $1 $11) 40. Rxc1 $1 {[%emt 0:01:48]} (40. Bxd4 Rxf1+ 41. Kxf1 Qc4+ 42. Kg2 Qxd4 43. Qe8+ (43. Qxe6 Qe4+ 44. Kh2 Qe2+ 45. Kh3 Qf1+ 46. Kg4 Qd1+ 47. Kg5 Qd2+ 48. Kg4 Qe2+ 49. Kh3 Qf1+ 50. Kh2 Qe2+ 51. Kg1 Qe1+ 52. Kh2 Qe2+ $11) 43... Kxh7 44. Qh5+ Bh6 45. Qf7+ Kh8 $11) 40... Qxc1+ {[%emt 0:00:06][%mdl 4096] Endgame [#] KQB-KQB. White is two pawns up.} 41. Kg2 {[%emt 0:30:39]} (41. Kh2 $1 $16) 41... Qd2+ $2 {[%emt 0:31:31]} (41... Qc6+ $1 $11 {and Black has nothing to worry.} 42. Kh2 Qd5) 42. Kh3 {[%emt 0:00:00]} Qd1 {[%emt 0:00:00]} (42... Qf2) 43. Qe4 $2 {[%emt 0:00:00]} (43. Qe8+ Kxh7 44. Qf7 (44. Qxe6 Qf1+ 45. Kg4 Qe2+ 46. Kh3 Qf1+ 47. Kg4 Qe2+ 48. Kh3 Qf1+ $11) 44... Qh1+ 45. Kg4 Qe4+ 46. Kh3 (46. Qf4 Qe2+ 47. Kh3 Qxe5 $11) 46... Qh1+ 47. Kg4 Qd5 $11) (43. Qxe6 $18 {[%csl Gh7][%cal Re6g8]} Qf1+ 44. Kg4 Qe2+ 45. Kg5 Qe3+ 46. Kh5 Qe2+ 47. Kg6 (47. g4 Qxe5+ 48. Qxe5 Bxe5 49. Kg6 d3 50. a6 bxa6 51. Ba5 Bd4) 47... Qd3+ 48. Kf7 Qxh7 (48... Qf3+ $2 49. Ke8 $18) 49. Qe8+ (49. Bxd4 Bxe5+ 50. Ke8 Bxd4 $17) 49... Bf8+ 50. Kf6 Qh6+ 51. Kf5) 43... d3 $11 {[%emt 0:00:00]} 44. Be3 {[%emt 0:00:00]} (44. Qxb7 $2 d2 45. Qa8+ Kxh7 46. Qe4+ Kg8 47. Qa8+ Bf8 $19) 44... d2 $2 {[%emt 0:00:00]} (44... Qe2 $14 45. Qf4 Kxh7) 45. Qg2 $1 $18 {[%emt 0:00:00]} (45. Qxb7 $2 Qf1+ (45... Bxe5 $2 46. Qg2 $18) 46. Qg2 d1=Q $19 (46... d1=R $2 47. Qxf1 Rxf1 48. a6 $19)) 45... Bxe5 {[%emt 0:00:00]} 46. Bxd2 {[%emt 0:00:00][%cal Og2b7] and Qxb7! should not be overlooked} (46. Qxb7 Qf1+ 47. Kh2 d1=Q $19 (47... d1=B 48. Qc8+ Kxh7 49. Qxe6 $11)) 46... Qb1 {[%emt 0:00:00]} (46... Qb3 {is a better defense.} 47. h5 Qd3) 47. Qe2 {[%emt 0:00:00]} (47. Qf3 $18 {and the rest is easy.}) 47... Qh1+ $16 {[%emt 0:00:00]} 48. Kg4 {[%emt 0:00:00]} Qd5 {[%emt 0:00:00]} 49. Kh3 {[%emt 0:00:00]} (49. Be1 $16) 49... Qh1+ $1 $11 {[%emt 0:00:00]} 50. Kg4 {[%emt 0:00:00]} (50. Qh2 $11 Qf1+ 51. Qg2 Qf5+ 52. Kh2) 50... Qd5 $1 $16 {[%emt 0:00:00]} 51. Kh3 {[%emt 0:00:00] Weighted Error Value: White=0.37/Black=0.31  Loses game:     	---       	Black=2      Missed win:     	White=2     	---        Mistake:       	White=8     	Black=7      Inaccurate:     	---       	Black=4      OK:         	White=14    	Black=12     Best:        	White=5     	Black=6      Strong:       	White=3     	Black=4} ({White should try} 51. Qe1 $16) 1/2-1/2

[Event "FIDE WSTC Open 50 2025"]
[Site "Prague"]
[Date "2025.02.17"]
[Round "1.33"]
[White "Ghannoum, Marc"]
[Black "Csiszar, Csaba"]
[Result "1-0"]
[Annotator "TA"]
[ECO "B30"]
[WhiteElo "2229"]
[BlackElo "2378"]
[PlyCount "79"]
[EventDate "2025.02.17"]
[EventType "team-tourn"]
[EventCountry "CZE"]
[SourceTitle "playchess.com"]
[Source "ChessBase"]
[SourceQuality "1"]
[TimeControl "40/5400+30:1800+30"]

{[%evp 14,79,31,29,43,44,53,24,44,51,43,42,51,46,135,41,25,0,0,0,143,113,107,62,62,56,48,37,134,106,206,209,198,209,372,357,374,370,367,363,345,0,0,0,0,-14,-35,-47,69,66,82,78,89,80,278,247,493,478,531,535,700,699,29993,29994,29997,29998,29998,29999]} 1. e4 {[%emt 0:00:04]} c5 {[%emt 0:00:10]} 2. Nf3 {[%emt 0:00:33]} Nc6 {[%emt 0:00:06]} 3. Bb5 {[%emt 0:00:14]} d6 {[%emt 0:00:12]} 4. O-O {[%emt 0:02:01]} Bd7 {[%emt 0:00:49]} 5. Re1 {[%emt 0:00:26]} Nf6 {[%emt 0:00:05]} 6. c3 {[%emt 0:01:21]} a6 {[%emt 0:00:09]} 7. Bf1 {[%emt 0:02:36]} Bg4 {[%emt 0:00:46]} 8. d4 {[%emt 0:01:41]} Bxf3 {[%emt 0:11:58] B51: Sicilian: Moscow Variation (3 Bb5+) without 3...Bd7.} 9. gxf3 {[%emt 0:00:38]} g5 {[%emt 0:00:10]} 10. Kh1 {[%emt 0:00:59]} (10. Bxg5 Rg8 11. f4 h6 $19) 10... Rg8 {[%emt 0:01:59] White has an edge.} 11. Be3 {[%emt 0:00:57]} e6 {[%emt 0:09:50] [#]} 12. b4 $146 {[%emt 0:03:11][%cal Bb2b4,Bb4b5][%mdl 32]} (12. Nd2 h5 13. b4 cxd4 14. cxd4 d5 15. b5 axb5 16. Bxb5 dxe4 17. fxe4 Bb4 18. Qb3 {1-0 Wachinger,N (2442)-Bethke,R (2357) GER-ch 93rd Magdeburg 2022 (5)}) 12... cxd4 {[%emt 0:04:01]} (12... Be7 13. bxc5) 13. cxd4 {[%emt 0:00:37]} g4 {[%emt 0:09:16]} ({Black should try} 13... d5 $14) 14. Nc3 {[%emt 0:11:19]} (14. b5 $16 axb5 15. d5 (15. Bxb5 gxf3 16. Qxf3 Nd7 $16)) 14... gxf3 $1 $14 {[%emt 0:11:07]} 15. b5 {[%emt 0:15:48]} Ng4 {[%emt 0:06:51][%cal Od8h4] ( -> ...Qh4!)} 16. Qxf3 $1 {[%emt 0:05:30] A sharp opening} (16. bxc6 Qh4 17. h3 Nxf2+ 18. Bxf2 Qxf2 19. Ne2 fxe2 20. cxb7 Rg1#) 16... Nb4 {[%emt 0:04:52]} (16... Qh4 $11 17. Qh3 (17. bxc6 $2 Qxh2#) 17... Nxf2+ (17... Qxh3 18. Bxh3 axb5 19. Nxb5 $14) 18. Bxf2 Qxf2) 17. Bh3 $16 {[%emt 0:05:43]} h5 {[%emt 0:05:57]} 18. Rab1 {[%emt 0:07:01]} a5 {[%emt 0:18:50]} 19. Bxg4 {[%emt 0:14:05]} hxg4 {[%emt 0:00:29]} 20. Qe2 $36 {[%emt 0:00:23][%mdl 2048] White has good play.} Qf6 {[%emt 0:03:31] [#]} (20... Rh8 $14) 21. Rg1 $1 {[%emt 0:04:14][%cal Oa2a3]} (21. a3 Nd3 22. Rg1 (22. Qxd3 Qf3+ 23. Kg1 g3 $11) 22... Nf4) 21... Rh8 {[%emt 0:02:58]} (21... Bh6 $16) 22. Rxg4 $18 {[%emt 0:03:25]} (22. Qxg4 $6 Nc2 $16) 22... Rc8 {[%emt 0:02:10]} 23. Rc1 {[%emt 0:03:26]} Bh6 $2 {[%emt 0:00:55]} (23... e5 {might work better.} 24. Bg5 Qe6) 24. e5 {[%emt 0:04:28]} Qf5 {[%emt 0:03:34] [#]} 25. Ne4 $1 {[%emt 0:00:29]} Rxc1+ {[%emt 0:00:20]} 26. Bxc1 {[%emt 0:00:06]} Kd7 {[%emt 0:00:18]} 27. Nxd6 $2 {[%emt 0:03:18]} (27. Rh4 $18) 27... Qd3 $1 $11 {[%emt 0:01:15]} ({Wrong is} 27... Qb1 $2 28. Qf3 Nd5 (28... Bxc1 29. Qxb7+ Kd8 30. Qc8+ Ke7 31. Qc7+ Kf8 32. Qxf7#) (28... Qxc1+ $2 {loses.} 29. Rg1 $18) 29. Kg2 (29. Nxf7 Rf8 $17) (29. Qxf7+ Ne7 $18) 29... Qxc1 30. Qxf7+ (30. Nxb7 Nf4+ 31. Rxf4 Bxf4 $19) 30... Ne7 31. Ne4 $18 (31. Nxb7 Rf8 $18)) 28. Qxd3 {[%emt 0:06:23]} Nxd3 {[%emt 0:00:04]} 29. Rh4 {[%emt 0:00:14]} Nxc1 {[%emt 0:01:36][%cal Bd3c1,Bc1a2,Ba2c3,Bc3e2][%mdl 32]} 30. Nxf7 {[%emt 0:00:10][%cal Bd6f7,Bf7h6,Bh6g4,Bg4f6,Bf6d7,Bd7c5,Bc5a6][%mdl 32]} Rf8 {[%emt 0:00:06]} (30... Rh7 $1 $15 31. Nxh6 Nxa2) 31. Nxh6 $14 {[%emt 0:00:08]} Nxa2 {[%emt 0:00:16][%cal Oa2c3][%mdl 4096] Endgame KRN-KRN. White is two pawns up.} 32. Ng4 {[%emt 0:01:24] Threatens to win with Rh7+.} Nc3 {[%emt 0:01:05]} 33. Nf6+ {[%emt 0:00:19]} Kc8 $2 {[%emt 0:00:34] Black cannot hold the game after this.} (33... Ke7 $16) 34. b6 $18 {[%emt 0:02:28]} Rd8 $2 {[%emt 0:00:38]} (34... a4 35. Rh7 Nd5 36. Nxd5 exd5) 35. Rh7 {[%emt 0:01:25] White wants to mate with Rc7+.} Kb8 {[%emt 0:00:21]} 36. Nd7+ {[%emt 0:00:23]} Ka8 {[%emt 0:00:11]} 37. Nc5 {[%emt 0:00:05][%csl LRb7,LRe6]} Ne2 {[%emt 0:00:59]} 38. Rxb7 {[%emt 0:00:22] White mates.} Nxd4 {[%emt 0:00:25]} 39. Ra7+ {[%emt 0:00:05]} Kb8 {[%emt 0:00:02]} 40. Na6+ {[%emt 0:00:05] Weighted Error Value: White=0.24 (precise) /Black=0.63  Loses game:     	---       	Black=1      Missed win:     	White=1     	---        Mistake:       	White=1     	Black=7      Inaccurate:     	White=2     	Black=2      OK:         	White=13    	Black=8      Best:        	White=3     	Black=3      Strong:       	White=3     	Black=2} 1-0

[Event "FIDE WSTC Open 50 2025"]
[Site "Prague"]
[Date "2025.02.17"]
[Round "1.34"]
[White "Varga, Zoltan"]
[Black "Gravel, Simon"]
[Result "1/2-1/2"]
[Annotator "TA"]
[ECO "A33"]
[WhiteElo "2301"]
[BlackElo "2265"]
[PlyCount "30"]
[EventDate "2025.02.17"]
[EventType "team-tourn"]
[EventCountry "CZE"]
[SourceTitle "playchess.com"]
[Source "ChessBase"]
[SourceQuality "1"]
[TimeControl "40/5400+30:1800+30"]

{[%evp 16,30,18,10,13,-385,273,11,191,-79,-93,-92,-23,-186,-178,-625,-57]} 1. c4 {[%emt 0:00:03]} c5 {[%emt 0:00:05]} 2. Nf3 {[%emt 0:00:03]} Nc6 {[%emt 0:00:18]} 3. d4 {[%emt 0:00:06]} cxd4 {[%emt 0:00:07]} 4. Nxd4 {[%emt 0:00:04]} Nf6 {[%emt 0:01:51]} 5. Nc3 {[%emt 0:00:07]} e6 {[%emt 0:00:26][%cal Be7e6,Be6e5][%mdl 32]} 6. Ndb5 {[%emt 0:00:59]} d5 {[%emt 0:02:37]} 7. Bf4 {[%emt 0:02:03]} e5 {[%emt 0:00:55]} 8. cxd5 {[%emt 0:00:46]} exf4 {[%emt 0:00:29]} 9. dxc6 {[%emt 0:00:02]} bxc6 {[%emt 0:00:22] [#] A33: Symmetrical English: 2 Nf3 Nf6 3 d4 cxd4 4 Nxd4 e6 5 Nc3 Nc6.} 10. Qd4 {[%mdl 8192]} Qd7 $4 {[%mdl 8192]} (10... cxb5 $19 11. Qe5+ Be7) 11. Qxd7+ {[%emt 0:03:29]} (11. Qe5+ $18 Qe7 12. Nc7+ (12. Qxf4 $2 cxb5 13. e4 a6 $19) 12... Kd8 13. Rd1+ (13. Qxf4 $2 Qxc7 14. Rd1+ Bd7 $19) 13... Nd5 14. Qxe7+ (14. Qxf4 $2 Qxc7 15. Qf3 Ke8 $19) 14... Bxe7 15. Nxa8) 11... Bxd7 $146 {[%emt 0:02:43]} (11... Kxd7 $11 {and Black has nothing to worry.} 12. Rd1+ Ke7) (11... Kxd7 12. Rd1+ {½-½ Varga,Z (2301)-Gravel,S (2265) WchT Seniors 50 2025 (1.34)}) 12. Nd4 $2 {[%emt 0:02:05]} (12. Nc7+ $18 Kd8 13. Nxa8) 12... Rb8 $17 {[%emt 0:04:27]} 13. Nb3 {[%emt 0:02:59]} Be6 {[%emt 0:37:12]} (13... c5 $17 {and ...c4 should not be overlooked} 14. Nd1 c4) 14. Na4 $2 {[%emt 0:12:00] [#]} (14. g3 $11 {and White is okay.}) 14... Ne4 {[%emt 0:15:15]} (14... Bxb3 15. axb3 Bb4+ (15... Rxb3 16. g3 $17) 16. Nc3) 15. g4 $2 {[%emt 0:24:41]} (15. Rc1) 15... g6 $2 {[%emt 0:00:00] Weighted Error Value: White=2.34/Black=1.34  Loses game:     	White=2     	Black=1      Missed win:     	White=2     	Black=2      Mistake:       	White=1     	Black=1      OK:         	White=1     	Black=1} ({Not} 15... Bxg4 16. Bg2 Rb4 17. Nc3 Nxc3 18. Bxc6+ Ke7 19. bxc3 $17) ({Black should play} 15... Bb4+ $19 16. Nc3 Nxc3 (16... Bxc3+ $2 17. bxc3 Nxc3 18. Bg2 $19) (16... Bxg4 $2 17. Rc1 $19)) 1/2-1/2

[Event "FIDE WSTC Open 50 2025"]
[Site "Prague"]
[Date "2025.02.17"]
[Round "1.35"]
[White "Bergeron, Pascal"]
[Black "Horvath, Peter"]
[Result "0-1"]
[Annotator "TA"]
[ECO "D00"]
[WhiteElo "2065"]
[BlackElo "2354"]
[PlyCount "74"]
[EventDate "2025.02.17"]
[EventType "team-tourn"]
[EventCountry "CZE"]
[SourceTitle "playchess.com"]
[Source "ChessBase"]
[SourceQuality "1"]
[TimeControl "40/5400+30:1800+30"]

{[%evp 9,74,-36,-31,-74,-20,-56,33,-4,20,0,58,66,68,62,80,83,99,0,12,-5,0,0,0,-2,-8,-11,15,11,67,105,112,82,87,-9,84,85,66,63,68,72,81,79,72,49,79,27,23,19,25,0,26,12,36,33,88,103,92,-321,-316,-296,-313,-29993,-1037,-29994,-29995,-29995,-29996]} 1. d4 {[%emt 0:00:04][%cal Bd2d4,Bd4d5][%mdl 32]} d5 {[%emt 0:00:08]} 2. Nc3 {[%emt 0:00:13]} c5 {[%emt 0:02:32]} 3. e4 {[%emt 0:02:02]} dxe4 {[%emt 0:04:25]} 4. d5 {[%emt 0:00:26]} Nf6 {[%emt 0:06:34]} 5. Bf4 {[%emt 0:01:37]} a6 {[%emt 0:06:12]} 6. Qd2 {[%emt 0:02:04] D00: 1 d4 d5: Unusual lines.} Nbd7 $146 {[%emt 0:07:59]} (6... b5 $17) (6... g6 7. O-O-O Bg7 8. d6 Nc6 9. dxe7 Qxd2+ 10. Bxd2 Bf5 11. h3 h5 12. Be3 Nd7 13. Nd5 Rc8 14. Ne2 Nxe7 15. Nec3 Nc6 16. Bf4 {½-½ Miladinovic,I (2572)-Nikolic,P (2669) SLO-chT 18th 2008 (2)}) 7. f3 {[%emt 0:05:55] [#]} e3 {[%emt 0:09:29]} 8. Bxe3 {[%emt 0:06:31] White is slightly better.} g6 {[%emt 0:01:09]} 9. O-O-O {[%emt 0:02:42]} Bg7 {[%emt 0:04:05]} (9... b5 $11) 10. Bh6 $14 {[%emt 0:11:28]} Bxh6 {[%emt 0:11:02]} 11. Qxh6 {[%emt 0:00:09]} b5 {[%emt 0:00:16]} 12. Nh3 {[%emt 0:04:43]} Bb7 {[%emt 0:11:39]} 13. Nf4 {[%emt 0:07:06]} (13. Ng5 $16) 13... Qb6 {[%emt 0:05:25]} 14. Kb1 {[%emt 0:16:13]} O-O-O {[%emt 0:01:45]} 15. Be2 {[%emt 0:03:54]} c4 {[%emt 0:10:04]} 16. Rhe1 {[%emt 0:12:31]} Nc5 {[%emt 0:00:29]} 17. Bf1 {[%emt 0:04:30][%cal Oh6g7]} b4 {[%emt 0:01:23]} 18. Ne4 {[%emt 0:00:40]} Ncxe4 {[%emt 0:01:59]} (18... c3 $11) 19. fxe4 {[%emt 0:00:37]} Qc5 {[%emt 0:02:20]} 20. Qh3+ {[%emt 0:01:27]} Kb8 {[%emt 0:00:18]} 21. b3 {[%emt 0:01:32]} (21. Qg3 $16 {aiming for Ne6+.} Qc7 22. b3) 21... g5 {[%emt 0:04:09]} (21... e5 $1 $11) 22. Nh5 $16 {[%emt 0:02:34]} cxb3 {[%emt 0:01:36]} 23. axb3 {[%emt 0:01:16]} Nxh5 {[%emt 0:00:58]} 24. Qxh5 {[%emt 0:00:18]} f6 {[%emt 0:00:25]} 25. Qf3 {[%emt 0:02:57]} a5 {[%emt 0:00:56]} 26. Qg3+ {[%emt 0:04:12]} Ka7 {[%emt 0:01:24]} 27. Qd3 {[%emt 0:02:21]} (27. Bc4 $16) 27... Rd6 $11 {[%emt 0:02:09]} 28. g3 {[%emt 0:00:44]} Rc8 {[%emt 0:00:32]} 29. Bg2 {[%emt 0:00:42]} Ba6 {[%emt 0:01:41]} 30. Qd2 {[%emt 0:00:12]} Rb6 {[%emt 0:00:58][%cal Oa5a4]} 31. e5 {[%emt 0:00:36]} fxe5 {[%emt 0:00:13]} (31... Bb7 $14) 32. Rxe5 $16 {[%emt 0:00:18][%cal Od1e1]} (32. Qxg5 Qxc2+ 33. Ka1 Qc3+ (33... Qxg2 $2 34. Qd2 $19) (33... Qxb3 $2 34. Qxe7+ Bb7 35. Be4 $19) 34. Ka2 Bc4 $19 (34... Qc2+ $2 35. Ka1 $19)) 32... a4 {[%emt 0:00:32] [#]} 33. bxa4 $2 {[%emt 0:01:42][%mdl 8192] This move loses the game for White.} (33. Be4 $1 $16 {keeps the pressure on.}) 33... b3 $19 {[%emt 0:00:16]} 34. c3 {[%emt 0:00:29] [#]} (34. Qxg5 $2 Qxc2+ 35. Ka1 Qa2#) 34... b2 $1 {[%emt 0:00:32]} 35. Qxg5 $2 {[%emt 0:02:28]} (35. Re6 $19 Rcb8 36. Qe1 (36. Qxg5 Bd3+ 37. Rxd3 Qg1+)) 35... Rc7 {[%emt 0:01:00]} (35... Bd3+ $142 36. Rxd3 Qg1+ 37. Bf1 Qxf1+ 38. Re1 Qxd3+ (38... Qxe1+ {leads to mate.} 39. Rd1 Qxd1+ 40. Qc1 bxc1=N+ 41. Ka1 Qxa4#) 39. Ka2 b1=Q+ (39... b1=B+ $2 40. Rxb1 Qxb1+ 41. Ka3 Rxc3#) 40. Rxb1 Qxb1+ 41. Ka3 Rxc3#) 36. Re6 {[%emt 0:00:34]} Qxc3 {[%emt 0:00:21]} 37. Rc6 {[%emt 0:00:30]} Bd3+ {[%emt 0:00:20] Weighted Error Value: White=0.68/Black=0.33  Loses game:     	White=1     	---        Mistake:       	White=4     	Black=7      Inaccurate:     	White=3     	Black=3      OK:         	White=5     	Black=6      Best:        	White=3     	Black=2      Strong:       	---       	Black=1} 0-1